[Event "44th BAN-ch OMICON 2018"]
[Site "Dhaka"]
[Date "2018.11.30"]
[Round "7"]
[White "Md, Sariatullah"]
[Black "Nayem, Haque"]
[Result "1/2-1/2"]
[ECO "C10"]
[WhiteElo "2027"]
[BlackElo "2074"]
[Annotator "NA"]
[PlyCount "57"]
[EventDate "2018.11.24"]
[EventType "swiss"]
[EventCountry "BAN"]
[SourceTitle "playchess.com"]
[Source "ChessBase"]
[SourceQuality "1"]
[TimeControl "40/5400+30:1800+30"]

1. e4 {[%emt 1:30:30]} e6 {[%emt 1:30:30]} 2. Nf3 {[%emt 0:00:30]} d5 {[%emt 0:00:30]} 3. Nc3 {[%emt 0:00:30]} dxe4 {[%emt 0:00:30]} 4. Nxe4 {[%emt 0:00:30]} Be7 {[%emt 0:00:30]} 5. d4 {[%emt 0:00:30]} Nf6 {[%emt 0:00:30]} 6. Bd3 {[%emt 0:00:30]} Bd7 {[%emt 0:00:30]} 7. O-O {[%emt 0:00:30] C10: French with 3 Nc3: Unusual Black 3rd moves and 3...dxe4} Bc6 {[%emt 0:00:30]} 8. Nxf6+ {[%emt 0:00:30]} (8. Ng3 Nbd7 9. Qe2 O-O 10. Ne5 Nxe5 11. dxe5 Qd5 12. f4 Nd7 13. Rd1 Qa5 14. c3 Ba4 15. Re1 Rfd8 16. Kh1 Nf8 17. Be3 c5 {1-0 (30) Adams,M (2723)-Kortschnoj,V (2632) Enghien les Bains 2003}) 8... Bxf6 {[%emt 0:00:30]} 9. c3 {[%emt 0:00:30]} O-O {[%emt 0:00:30]} 10. Bf4 {[%emt 0:00:30]} Nd7 {[%emt 0:00:30]} 11. Qc2 {[%emt 0:00:30]} Bxf3 $146 {[%emt 0:00:30]} ({Predecessor:} 11... g6 12. Rae1 Re8 13. Ne5 Nxe5 14. Bxe5 Bxe5 15. Rxe5 {0-1 (47) King,A-Batchilo,E Bratislava 1993}) 12. Bxh7+ {[%emt 0:00:30]} Kh8 {[%emt 0:00:30]} 13. gxf3 {[%emt 0:00:30] [#]} Bg5 {[%emt 0:00:30]} (13... g6 $1 $19 14. Bxg6 Rg8 {[%mdl 64] Pin}) 14. Bg3 {[%emt 0:00:30]} f5 {[%emt 0:00:30]} 15. f4 {[%emt 0:00:30]} Bxf4 {[%emt 0:00:30]} (15... Kxh7 $11 16. fxg5 Qxg5) 16. Bxf4 {[%emt 0:00:30]} g5 {[%emt 0:00:30]} 17. Bg3 {[%emt 0:00:30]} Kxh7 {[%emt 0:00:30]} 18. Rfe1 {[%emt 0:00:30]} Rf6 {[%emt 0:00:30]} 19. Be5 {[%emt 0:00:30]} Nxe5 {[%emt 0:00:30]} 20. Rxe5 {[%emt 0:00:30]} Qg8 $16 {[%emt 0:00:30]} 21. Rae1 {[%emt 0:00:30]} Qg6 {[%emt 0:00:30]} 22. Kh1 {[%emt 0:00:30]} Qh5 {[%emt 0:00:30]} 23. Rxe6 {[%emt 0:00:30]} Qf3+ {[%emt 0:00:30]} 24. Kg1 {[%emt 0:00:30]} Qg4+ {[%emt 0:00:30]} 25. Kh1 {[%emt 0:00:30]} Qf3+ {[%emt 0:00:30]} 26. Kg1 {[%emt 0:00:30]} Qg4+ {[%emt 0:00:30]} 27. Kh1 {[%emt 0:00:30]} Qf3+ {[%emt 0:00:30]} 28. Kg1 {[%emt 0:00:30]} Qg4+ {[%emt 0:00:30]} 29. Kh1 {[%emt 0:00:30]} 1/2-1/2

[Event "44th BAN-ch OMICON 2018"]
[Site "Dhaka"]
[Date "2018.11.30"]
[Round "7"]
[White "Zia, Tahsin Tajwar"]
[Black "Mohammad Minhaz Uddin"]
[Result "0-1"]
[ECO "A07"]
[WhiteElo "1803"]
[BlackElo "2290"]
[Annotator "RC"]
[PlyCount "70"]
[EventDate "2018.11.24"]
[EventType "swiss"]
[EventCountry "BAN"]
[SourceTitle "playchess.com"]
[Source "ChessBase"]
[SourceQuality "1"]
[TimeControl "40/5400+30:1800+30"]

1. Nf3 {[%emt 0:00:00]} Nf6 {[%emt 0:00:00]} 2. g3 {[%emt 0:00:02]} d5 {[%emt 0:01:03]} 3. Bg2 {[%emt 0:00:09]} Bg4 {[%emt 0:02:42]} 4. O-O {[%emt 0:00:14]} Nbd7 {[%emt 0:01:51]} 5. d3 {[%emt 0:00:39]} e5 {[%emt 0:00:28]} 6. Qe1 {[%emt 0:01:06]} Bc5 {[%emt 0:04:07]} 7. h3 {[%emt 0:02:42]} Bh5 {[%emt 0:02:28]} 8. e4 {[%emt 0:00:36]} dxe4 {[%emt 0:00:36]} 9. dxe4 {[%emt 0:00:17]} c6 {[%emt 0:06:24]} 10. a4 {[%emt 0:02:42]} O-O {[%emt 0:09:28]} 11. Bd2 {[%emt 0:03:34]} a6 {[%emt 0:04:03]} 12. a5 {[%emt 0:01:16]} Bxf3 {[%emt 0:04:27]} 13. Bxf3 {[%emt 0:00:16]} Qe7 {[%emt 0:00:03]} 14. Na3 {[%emt 0:02:38]} Rfd8 {[%emt 0:00:19]} 15. Nc4 {[%emt 0:01:30]} Qe6 {[%emt 0:00:28]} 16. Ne3 {[%emt 0:09:13]} Qxh3 {[%emt 0:03:31]} 17. Qe2 {[%emt 0:06:29]} Nf8 {[%emt 0:14:03]} 18. Nf5 {[%emt 0:17:43]} Ne6 {[%emt 0:04:32]} 19. c3 {[%emt 0:01:40]} g6 {[%emt 0:04:15]} 20. Bg2 {[%emt 0:17:29]} Qh5 {[%emt 0:01:38]} 21. Bf3 {[%emt 0:01:51]} Rxd2 {[%emt 0:00:40]} 22. Bxh5 {[%emt 0:00:12]} Rxe2 {[%emt 0:00:03]} 23. Bxe2 {[%emt 0:00:31]} gxf5 {[%emt 0:00:03]} 24. exf5 {[%emt 0:00:09]} Ng7 {[%emt 0:02:28]} 25. g4 {[%emt 0:00:54]} h5 {[%emt 0:05:42]} 26. Ra4 {[%emt 0:03:02]} hxg4 {[%emt 0:01:26]} 27. Bxg4 {[%emt 0:01:15]} e4 {[%emt 0:00:33]} 28. Rc4 {[%emt 0:01:39]} Bxf2+ {[%emt 0:05:07]} 29. Kxf2 {[%emt 0:01:56]} Nxg4+ {[%emt 0:00:03]} 30. Ke2 {[%emt 0:00:02]} Nf6 {[%emt 0:00:21]} 31. Rb4 {[%emt 0:00:41]} Rb8 {[%emt 0:00:13]} 32. c4 {[%emt 0:00:07]} Kf8 {[%emt 0:01:29]} 33. Ke3 {[%emt 0:00:32]} Ke7 {[%emt 0:02:19]} 34. Kd4 {[%emt 0:01:47]} Nge8 {[%emt 0:04:13]} 35. Rb3 {[%emt 0:01:06]} Nd6 {[%emt 0:03:20]} 0-1

[Event "44th BAN-ch OMICON 2018"]
[Site "Dhaka"]
[Date "2018.12.01"]
[Round "8"]
[White "Mohammad Fahad, Rahman"]
[Black "Ghosh, Chanchal Kumer"]
[Result "1-0"]
[ECO "B01"]
[WhiteElo "2381"]
[BlackElo "2069"]
[Annotator "NA"]
[PlyCount "107"]
[EventDate "2018.11.24"]
[EventType "swiss"]
[EventCountry "BAN"]
[SourceTitle "playchess.com"]
[Source "ChessBase"]
[SourceQuality "1"]
[TimeControl "40/5400+30:1800+30"]

1. e4 {[%emt 0:00:21]} d5 {[%emt 0:09:22]} 2. exd5 {[%emt 0:00:23]} Nf6 {[%emt 0:00:48]} 3. d4 {[%emt 0:00:50]} Nxd5 {[%emt 0:00:10]} 4. Nf3 {[%emt 0:00:30]} Bf5 {[%emt 0:00:58]} 5. Bd3 {[%emt 0:01:00]} Bxd3 {[%emt 0:01:15]} 6. Qxd3 {[%emt 0:00:08]} e6 {[%emt 0:00:33]} 7. O-O {[%emt 0:00:10] B01: Scandinavian Defence} Nd7 {[%emt 0:02:24]} (7... Nc6 8. c4 Nb6 9. Nc3 Be7 10. Bf4 g5 11. Bg3 g4 12. Ne5 Nxd4 13. c5 Bxc5 14. Rad1 O-O {1-0 (25) Topalov,V (2801)-Kamsky,G (2686) Wijk aan Zee 2006}) 8. c4 {[%emt 0:01:57]} N5f6 {[%emt 0:00:56]} 9. Nc3 {[%emt 0:02:05]} Be7 {[%emt 0:01:08]} 10. Re1 {[%emt 0:01:48]} O-O {[%emt 0:00:23]} 11. Bg5 {[%emt 0:00:20]} c6 {[%emt 0:04:44]} 12. Rad1 {[%emt 0:01:19]} Re8 {[%emt 0:02:29]} 13. d5 $146 {[%emt 0:18:22]} ({Predecessor:} 13. a3 h6 14. Bh4 Qa5 {1-0 (55) Golubev,M (2527)-Krivoshey,S (2501) playchess.com INT 2004}) 13... cxd5 {[%emt 0:03:59]} (13... exd5 $11 {remains equal.} 14. cxd5 Bb4) 14. cxd5 {[%emt 0:00:18]} Nc5 {[%emt 0:15:15]} 15. Qd4 {[%emt 0:01:31]} (15. Qc4 $16 Qb6 {[#]} 16. d6 $1 {[%mdl 512]} Bxd6 17. Bxf6 gxf6 18. b4) 15... Qb6 {[%emt 0:23:42]} 16. d6 {[%emt 0:00:50]} Bd8 {[%emt 0:00:37]} 17. Ne5 {[%emt 0:35:37]} Ncd7 {[%emt 0:02:19]} 18. Qd2 {[%emt 0:03:21]} Nxe5 {[%emt 0:04:00]} 19. Rxe5 {[%emt 0:00:01]} Nd7 {[%emt 0:00:28]} 20. Be3 {[%emt 0:05:57]} Qc6 {[%emt 0:00:52]} 21. Re4 {[%emt 0:00:10]} Bf6 {[%emt 0:02:01]} 22. Rg4 {[%emt 0:00:12]} Ne5 $14 {[%emt 0:00:58]} (22... Bxc3 $11 23. bxc3 b6) 23. Rb4 {[%emt 0:02:52]} Nc4 {[%emt 0:00:58]} 24. Qd3 {[%emt 0:00:05]} Nxe3 {[%emt 0:03:18]} 25. Qxe3 {[%emt 0:00:51]} Red8 {[%emt 0:01:42]} 26. Ne4 {[%emt 0:01:05]} Be5 {[%emt 0:00:39]} 27. Qd3 {[%emt 0:03:56]} f5 {[%emt 0:01:12]} 28. Qb3 {[%emt 0:00:21]} Re8 {[%emt 0:04:55]} 29. Ng5 {[%emt 0:00:50]} Bxd6 {[%emt 0:00:43]} 30. Rxb7 {[%emt 0:01:28]} Bf4 {[%emt 0:04:23]} 31. Nf3 {[%emt 0:01:27]} Rab8 {[%emt 0:00:25]} 32. Rb4 {[%emt 0:01:01]} Bd6 {[%emt 0:00:47]} 33. Rxb8 {[%emt 0:00:07]} Bxb8 {[%emt 0:00:06]} 34. g3 {[%emt 0:00:45]} Kf8 {[%emt 0:02:08]} 35. Qb4+ {[%emt 0:03:13]} Kg8 {[%emt 0:00:29]} 36. Nd4 {[%emt 0:00:27]} Qd5 {[%emt 0:00:46]} 37. Re1 {[%emt 0:01:43]} f4 {[%emt 0:01:28]} 38. Rxe6 {[%emt 0:03:24]} Rc8 {[%emt 0:01:44]} 39. Re1 {[%emt 0:01:05]} fxg3 {[%emt 0:00:22]} 40. hxg3 {[%emt 0:00:00]} Be5 {[%emt 0:00:00]} 41. Nf5 {[%emt 0:03:13]} Bf6 {[%emt 0:03:38]} 42. Qg4 {[%emt 0:00:12]} Rd8 {[%emt 0:13:00]} 43. b3 {[%emt 0:02:43]} Qd2 {[%emt 0:02:24]} 44. Qc4+ {[%emt 0:00:45]} Kh8 {[%emt 0:00:40]} 45. Qe6 {[%emt 0:00:18]} h6 {[%emt 0:01:01]} 46. a4 {[%emt 0:02:41]} Rb8 {[%emt 0:03:35]} 47. Re3 {[%emt 0:03:18]} Rf8 {[%emt 0:02:29]} 48. Kg2 {[%emt 0:01:08]} Bd4 {[%emt 0:01:29]} 49. Rf3 {[%emt 0:00:22]} Bb6 {[%emt 0:02:03]} 50. Nxh6 {[%emt 0:00:32]} Qxf2+ {[%emt 0:07:54]} 51. Rxf2 {[%emt 0:00:04]} Rxf2+ {[%emt 0:00:08]} 52. Kh3 {[%emt 0:00:03]} gxh6 {[%emt 0:00:12]} 53. a5 {[%emt 0:29:21]} Bxa5 {[%emt 0:00:49]} 54. Qe5+ {[%emt 0:00:06]} 1-0

[Event "44th BAN-ch OMICON 2018"]
[Site "Dhaka"]
[Date "2018.12.01"]
[Round "8"]
[White "Mohammad Minhaz Uddin"]
[Black "Islam, Kh. Aminul"]
[Result "1/2-1/2"]
[ECO "C77"]
[WhiteElo "2290"]
[BlackElo "2253"]
[Annotator "NA"]
[PlyCount "27"]
[EventDate "2018.11.24"]
[EventType "swiss"]
[EventCountry "BAN"]
[SourceTitle "playchess.com"]
[Source "ChessBase"]
[SourceQuality "1"]
[TimeControl "40/5400+30:1800+30"]

{[%evp 21,27,-17,5,0,0,14,14,8]} 1. e4 {[%emt 0:00:00]} e5 {[%emt 0:00:00]} 2. Nf3 {[%emt 0:00:00]} Nc6 {[%emt 0:00:00]} 3. Bb5 {[%emt 0:00:00]} a6 {[%emt 0:00:09]} 4. Ba4 {[%emt 0:00:00]} Nf6 {[%emt 0:00:10]} 5. Bxc6 {[%emt 0:00:23]} dxc6 {[%emt 0:02:23]} 6. d3 {[%emt 0:00:03]} Nd7 {[%emt 0:01:24]} 7. Nbd2 {[%emt 0:03:13]} f6 {[%emt 0:03:38]} 8. Nf1 {[%emt 0:00:41]} Qe7 {[%emt 0:02:02]} 9. Ng3 {[%emt 0:01:51]} Nc5 {[%emt 0:02:11]} 10. Be3 {[%emt 0:04:15]} Bg4 {[%emt 0:02:38]} 11. h3 {[%emt 0:04:11]} Bxf3 {[%emt 1:20:55]} 12. Qxf3 {[%emt 1:21:23]} Ne6 {[%emt 0:00:29]} 13. O-O-O {[%emt 0:01:21]} O-O-O {[%emt 0:01:09]} 14. Ne2 $11 {[%emt 0:01:26]} 1/2-1/2

[Event "44th BAN-ch OMICON 2018"]
[Site "Dhaka"]
[Date "2018.12.01"]
[Round "8"]
[White "Chatterjee, Debaraj"]
[Black "Anata, Choudhury"]
[Result "0-1"]
[ECO "D78"]
[WhiteElo "2277"]
[BlackElo "2141"]
[Annotator "NA"]
[PlyCount "100"]
[EventDate "2018.11.24"]
[EventType "swiss"]
[EventCountry "BAN"]
[SourceTitle "playchess.com"]
[Source "ChessBase"]
[SourceQuality "1"]
[TimeControl "40/5400+30:1800+30"]

1. Nf3 {[%emt 0:01:08]} Nf6 {[%emt 0:00:00]} 2. g3 {[%emt 0:00:08]} d5 {[%emt 0:00:00]} 3. Bg2 {[%emt 0:00:31]} g6 {[%emt 0:00:08]} 4. O-O {[%emt 0:00:50]} Bg7 {[%emt 0:00:14]} 5. c4 {[%emt 0:00:38]} c6 {[%emt 0:00:15]} 6. d4 {[%emt 0:01:00]} O-O {[%emt 0:00:15]} 7. Nc3 {[%emt 0:00:46]} Ne4 {[%emt 0:00:33]} 8. Qb3 {[%emt 0:04:11]} Qa5 $146 {[%emt 0:02:42] D78: Fianchetto Grünfeld: 6 0-0 c6} ({Predecessor:} 8... Nxc3 9. bxc3 dxc4 10. Qxc4 Nd7 11. a4 e5 12. a5 exd4 13. cxd4 Nf6 14. a6 Qd5 15. axb7 Bxb7 16. Ne5 Qxc4 17. Nxc4 Nd5 18. e3 Rfc8 {1-0 (45) Svidler,P (2739)-Slugin,S (2369) St Petersburg 2015}) 9. cxd5 {[%emt 0:05:01]} Nxc3 {[%emt 0:00:25]} 10. bxc3 {[%emt 0:00:21]} cxd5 {[%emt 0:00:08]} 11. Bd2 {[%emt 0:01:05]} Nc6 {[%emt 0:03:29]} 12. c4 {[%emt 0:21:04]} dxc4 {[%emt 0:00:54]} 13. Qxc4 {[%emt 0:00:02]} Qd8 {[%emt 0:00:23]} 14. Bc3 {[%emt 0:00:20]} (14. d5 $5 {[%cal Rd5c6]} Na5 15. Qh4 $11) 14... Be6 {[%emt 0:00:29]} 15. Qd3 {[%emt 0:04:33]} f5 {[%emt 0:00:00]} (15... Rc8 $11 {keeps the balance.}) 16. Ng5 {[%emt 0:27:00]} Bd5 {[%emt 0:00:00]} 17. Qb5 {[%emt 0:00:20]} e6 {[%emt 0:00:00]} 18. Bxd5 {[%emt 0:02:05]} Qxd5 {[%emt 0:00:00]} 19. Qxd5 {[%emt 0:00:37]} exd5 {[%emt 0:00:00]} 20. Ne6 {[%emt 0:00:07]} Rf7 {[%emt 0:00:00]} 21. Nxg7 {[%emt 0:00:39]} Rxg7 {[%emt 0:03:30]} 22. Rfc1 {[%emt 0:02:10]} Re7 {[%emt 0:00:00]} 23. e3 {[%emt 0:00:21]} Kf7 {[%emt 0:00:00]} 24. Bd2 {[%emt 0:03:00]} Ke6 {[%emt 0:00:00]} 25. Rc5 {[%emt 0:01:05]} Rc8 {[%emt 0:00:00]} 26. Rac1 {[%emt 0:00:15]} Rec7 {[%emt 0:00:00]} 27. Kg2 {[%emt 0:00:53]} b6 {[%emt 0:00:00]} 28. R5c2 {[%emt 0:02:16]} Kd7 $1 {[%emt 0:00:00]} 29. h4 {[%emt 0:02:48]} Nd8 $1 {[%emt 0:00:00]} 30. Rxc7+ {[%emt 0:04:22]} Rxc7 {[%emt 0:00:00]} 31. Rxc7+ {[%emt 0:00:15]} Kxc7 {[%emt 0:00:00]} 32. Kf3 {[%emt 0:00:10]} Ne6 {[%emt 0:00:00]} 33. Ke2 {[%emt 0:00:08]} Kc6 {[%emt 0:00:00]} 34. Kd3 {[%emt 0:01:03]} Nc7 {[%emt 0:10:00]} 35. f3 {[%emt 0:04:30]} Ne8 {[%emt 0:00:00]} 36. Bb4 {[%emt 0:04:25]} Nf6 {[%emt 0:00:00]} 37. Be7 {[%emt 0:00:57]} Nh5 {[%emt 0:00:00]} 38. g4 {[%emt 0:00:48]} fxg4 {[%emt 0:00:00]} 39. fxg4 {[%emt 0:00:03]} Ng3 {[%emt 0:00:00]} 40. Bb4 {[%emt 0:00:00]} Kb5 {[%emt 0:00:00]} 41. Be1 {[%emt 0:13:23]} Ne4 {[%emt 0:00:00]} 42. Ke2 {[%emt 0:00:02]} h6 {[%emt 0:00:00]} 43. Kf3 {[%emt 0:06:36]} g5 {[%emt 0:44:30]} 44. hxg5 {[%emt 0:00:06]} hxg5 {[%emt 0:00:00]} 45. Ke2 {[%emt 0:00:56]} Ka4 {[%emt 0:45:30]} 46. Kd3 {[%emt 0:00:17]} Ka3 {[%emt 0:46:00]} 47. Kc2 {[%emt 0:00:29]} Kxa2 {[%emt 0:00:00]} 48. Bb4 {[%emt 0:00:09]} a5 {[%emt 0:00:00]} 49. Be7 {[%emt 0:00:45]} b5 {[%emt 0:00:00]} 50. Bd8 {[%emt 0:00:07]} b4 {[%emt 0:00:00]} 0-1

[Event "44th BAN-ch OMICON 2018"]
[Site "Dhaka"]
[Date "2018.12.01"]
[Round "8"]
[White "Abu Sufian, Shakil"]
[Black "Subrota, Biswas"]
[Result "1-0"]
[ECO "C69"]
[WhiteElo "2230"]
[BlackElo "2126"]
[Annotator "NA"]
[PlyCount "139"]
[EventDate "2018.11.24"]
[EventType "swiss"]
[EventCountry "BAN"]
[SourceTitle "playchess.com"]
[Source "ChessBase"]
[SourceQuality "1"]
[TimeControl "40/5400+30:1800+30"]

1. e4 {[%emt 0:00:00]} e5 {[%emt 0:00:58]} 2. Nf3 {[%emt 0:00:00]} Nc6 {[%emt 0:00:04]} 3. Bb5 {[%emt 0:00:00]} a6 {[%emt 0:00:29]} 4. Bxc6 {[%emt 0:00:43]} dxc6 {[%emt 0:00:02]} 5. O-O {[%emt 0:00:07]} f6 {[%emt 0:00:14]} 6. d4 {[%emt 0:00:08]} exd4 {[%emt 0:00:05]} 7. Nxd4 {[%emt 0:00:04]} c5 {[%emt 0:00:10]} 8. Ne2 {[%emt 0:00:20]} Qxd1 {[%emt 0:00:03]} 9. Rxd1 {[%emt 0:00:05]} Bd7 {[%emt 0:00:29]} 10. Nbc3 {[%emt 0:00:08] C69: Ruy Lopez: Exchange Variation with 5 0-0 f6} Ne7 {[%emt 0:03:05]} (10... O-O-O 11. Be3 b6 12. a4 Re8 13. Rd2 Bc6 14. Rad1 Be7 15. a5 b5 16. Nf4 b4 17. Ncd5 Bd6 18. Nb6+ Kb8 19. Rxd6 cxd6 20. Rxd6 {1-0 (56) Naiditsch,A (2697)-Boruchovsky,A (2558) Jerusalem 2018}) 11. Be3 {[%emt 0:06:58]} b6 {[%emt 0:00:42]} 12. Nf4 {[%emt 0:02:21]} O-O-O {[%emt 0:00:59]} 13. Rd2 {[%emt 0:07:35]} Ng6 {[%emt 0:05:16]} 14. Nxg6 {[%emt 0:02:00]} hxg6 {[%emt 0:00:02]} 15. Bf4 {[%emt 0:00:24]} g5 {[%emt 0:03:09]} 16. Bg3 {[%emt 0:00:38]} Bc6 $146 {[%emt 0:01:40]} 17. Rxd8+ {[%emt 0:01:14]} Kxd8 {[%emt 0:00:02]} 18. Rd1+ {[%emt 0:00:06]} Kc8 {[%emt 0:00:09]} 19. Nd5 {[%emt 0:02:52]} Bxd5 {[%emt 0:00:07]} 20. Rxd5 {[%emt 0:00:18] ½-½ (34) Nikic,S (1691)-Zoebisch,H (2108) Graz 2012} c4 {[%emt 0:02:21]} 21. f3 {[%emt 0:02:31]} Bc5+ {[%emt 0:04:42]} 22. Kf1 {[%emt 0:01:02]} Re8 {[%emt 0:00:51]} 23. Bf2 {[%emt 0:03:53]} c6 {[%emt 0:05:40]} 24. Rd1 {[%emt 0:03:30]} Bxf2 {[%emt 0:00:43]} 25. Kxf2 {[%emt 0:00:02]} Re5 {[%emt 0:00:00]} 26. c3 {[%emt 0:02:48]} Rb5 {[%emt 0:03:45]} 27. Rd2 {[%emt 0:00:16]} Kc7 {[%emt 0:03:53]} 28. Ke3 {[%emt 0:05:49]} Ra5 {[%emt 0:00:18]} 29. a3 {[%emt 0:00:06]} Re5 {[%emt 0:00:06]} 30. f4 {[%emt 0:02:50]} gxf4+ {[%emt 0:00:54]} 31. Kxf4 {[%emt 0:00:13]} b5 {[%emt 0:02:19]} 32. g3 {[%emt 0:02:26]} a5 {[%emt 0:00:40]} 33. h4 {[%emt 0:00:27]} Rc5 {[%emt 0:07:02]} 34. Ke3 {[%emt 0:03:15]} Re5 {[%emt 0:02:24]} 35. g4 {[%emt 0:00:22]} Re8 {[%emt 0:01:18]} 36. Kf4 {[%emt 0:01:08]} Rh8 {[%emt 0:09:03]} 37. h5 {[%emt 0:03:24]} Re8 {[%emt 0:01:47]} 38. Rh2 {[%emt 0:09:53]} b4 $18 {[%emt 0:02:10]} (38... Kd7 $16) 39. axb4 {[%emt 0:26:17]} axb4 {[%emt 0:00:01]} 40. cxb4 {[%emt 0:00:00]} Rb8 {[%emt 0:00:00]} 41. e5 {[%emt 0:03:44]} fxe5+ {[%emt 0:07:38]} 42. Kxe5 {[%emt 0:00:09]} Rb5+ {[%emt 0:00:55]} 43. Kf4 {[%emt 0:03:26]} Rxb4 {[%emt 0:00:05]} 44. Kf5 {[%emt 0:00:07]} Ra4 {[%emt 0:34:42]} 45. g5 {[%emt 0:05:44]} Ra2 {[%emt 0:01:34]} 46. Rc2 {[%emt 0:02:50]} c3 {[%emt 0:04:32]} 47. Rxc3 {[%emt 0:00:08]} Rxb2 {[%emt 0:00:04]} 48. Kg6 {[%emt 0:00:13]} Rh2 {[%emt 0:00:39]} 49. Rf3 {[%emt 0:00:53]} c5 {[%emt 0:02:06]} 50. Rf7+ {[%emt 0:00:13]} Kd8 {[%emt 0:02:05]} 51. Rxg7 {[%emt 0:01:39]} c4 {[%emt 0:00:07]} 52. Rf7 {[%emt 0:01:01]} c3 {[%emt 0:01:45]} 53. Rf3 {[%emt 0:01:12]} c2 {[%emt 0:01:05]} 54. Rc3 {[%emt 0:00:34]} Rd2 {[%emt 0:00:50]} 55. h6 {[%emt 0:00:40]} Rd6+ {[%emt 0:00:08]} 56. Kh5 {[%emt 0:00:54]} Ke7 {[%emt 0:00:31]} 57. Rxc2 {[%emt 0:00:49]} Rd1 {[%emt 0:01:19]} 58. Rf2 {[%emt 0:00:55]} Rd6 {[%emt 0:00:42]} 59. h7 {[%emt 0:00:23]} Rd1 {[%emt 0:00:19]} 60. Kg6 {[%emt 0:00:16]} Rh1 {[%emt 0:00:08]} 61. Kg7 {[%emt 0:00:13]} Rh5 {[%emt 0:00:10]} 62. g6 {[%emt 0:00:24]} Ke6 {[%emt 0:00:25]} 63. h8=Q {[%emt 0:00:08]} Rh7+ {[%emt 0:01:17]} 64. gxh7 {[%emt 0:00:08]} Ke5 {[%emt 0:00:12]} 65. Qe8+ {[%emt 0:00:06]} Kd4 {[%emt 0:00:07]} 66. Rd2+ {[%emt 0:00:06]} Kc3 {[%emt 0:00:12]} 67. Rd7 {[%emt 0:00:05]} Kc2 {[%emt 0:00:13]} 68. Qc8+ {[%emt 0:00:02]} Kb1 {[%emt 0:00:10]} 69. Rb7+ {[%emt 0:00:01]} Ka1 {[%emt 0:00:11]} 70. Qa8# {[%emt 0:00:01]} 1-0

[Event "44th BAN-ch OMICON 2018"]
[Site "Dhaka"]
[Date "2018.12.01"]
[Round "8"]
[White "Mehdi Hasan Parag"]
[Black "Rahman, Md. Taibur"]
[Result "1-0"]
[ECO "B29"]
[WhiteElo "2218"]
[BlackElo "2239"]
[Annotator "NA"]
[PlyCount "59"]
[EventDate "2018.11.24"]
[EventType "swiss"]
[EventCountry "BAN"]
[SourceTitle "playchess.com"]
[Source "ChessBase"]
[SourceQuality "1"]
[TimeControl "40/5400+30:1800+30"]

1. e4 {[%emt 0:00:00]} c5 {[%emt 0:00:00]} 2. Nf3 {[%emt 0:00:00]} Nf6 {[%emt 0:00:00]} 3. Nc3 {[%emt 0:00:18]} d5 {[%emt 0:00:00]} 4. exd5 {[%emt 0:01:12]} Nxd5 {[%emt 0:00:00]} 5. Bc4 {[%emt 0:00:46]} e6 {[%emt 0:02:57]} 6. O-O {[%emt 0:00:24]} Be7 {[%emt 0:00:07]} 7. Re1 {[%emt 0:00:13]} Nc6 {[%emt 0:00:50]} 8. Ne4 {[%emt 0:00:56]} O-O {[%emt 0:01:08]} 9. d4 {[%emt 0:07:24]} Nb6 {[%emt 0:03:17]} 10. Bd3 {[%emt 0:02:16]} cxd4 {[%emt 0:06:42]} 11. Bb5 {[%emt 0:13:46]} Nb4 {[%emt 0:45:19]} 12. a3 {[%emt 0:11:40]} Qd5 {[%emt 0:04:11]} 13. axb4 {[%emt 0:07:59]} Qxb5 {[%emt 0:00:51]} 14. Nxd4 {[%emt 0:02:32]} Qxb4 {[%emt 0:07:05]} 15. c3 {[%emt 0:00:08]} Qc4 {[%emt 0:00:10]} 16. b3 {[%emt 0:02:48]} Qd5 {[%emt 0:01:01]} 17. c4 {[%emt 0:03:09]} Qd8 {[%emt 0:00:17]} 18. Bb2 {[%emt 0:09:24]} Nd7 $11 {[%emt 0:04:58]} 19. Qf3 {[%emt 0:05:44]} Nc5 {[%emt 0:08:14]} 20. Red1 {[%emt 0:01:06]} Qb6 {[%emt 0:01:01]} 21. Ng3 {[%emt 0:04:01]} Rd8 {[%emt 0:06:52]} 22. Nh5 {[%emt 0:01:05]} Bf8 {[%emt 0:01:46]} 23. Nb5 {[%emt 0:01:50]} Bd7 {[%emt 0:01:26]} 24. Bxg7 {[%emt 0:02:05]} e5 {[%emt 0:02:35]} 25. Bxe5 {[%emt 0:01:07]} f5 {[%emt 0:00:41]} 26. Nf6+ {[%emt 0:00:34]} Kf7 {[%emt 0:00:05]} 27. Qh5+ {[%emt 0:02:20]} Ke6 {[%emt 0:00:18]} 28. Nc7+ {[%emt 0:00:42]} Kxe5 {[%emt 0:00:07]} 29. Ng4+ {[%emt 0:02:18]} Ke4 {[%emt 0:01:03]} 30. f3+ {[%emt 0:00:33] Kd5 [%clk 0:00:00]} 1-0

[Event "44th BAN-ch OMICON 2018"]
[Site "Dhaka"]
[Date "2018.12.01"]
[Round "8"]
[White "Md., Sharif Hossain"]
[Black "Ikramul, Haq Siam"]
[Result "1-0"]
[ECO "A20"]
[WhiteElo "2198"]
[BlackElo "2100"]
[Annotator "NA"]
[PlyCount "65"]
[EventDate "2018.11.24"]
[EventType "swiss"]
[EventCountry "BAN"]
[SourceTitle "playchess.com"]
[Source "ChessBase"]
[SourceQuality "1"]
[TimeControl "40/5400+30:1800+30"]

1. b3 {[%emt 0:02:35]} e5 {[%emt 0:00:00]} 2. c4 {[%emt 0:00:22]} Nf6 {[%emt 0:01:10]} 3. g3 {[%emt 0:00:42]} Bc5 {[%emt 0:01:30]} 4. Bg2 {[%emt 0:00:44]} O-O {[%emt 0:00:07]} 5. Nc3 {[%emt 0:00:52]} c6 {[%emt 0:00:12]} 6. e3 {[%emt 0:04:20]} d5 {[%emt 0:06:29]} 7. Na4 {[%emt 0:02:11]} Bd6 {[%emt 0:00:26]} 8. Ne2 {[%emt 0:00:46]} Be6 {[%emt 0:07:41]} 9. Nb2 {[%emt 1:21:58]} Nbd7 {[%emt 0:00:35]} 10. O-O {[%emt 0:00:14]} a5 {[%emt 0:01:54]} 11. f4 $1 {[%emt 0:01:00]} exf4 {[%emt 0:05:54]} 12. Nxf4 {[%emt 0:01:19]} Bg4 {[%emt 0:00:04]} 13. Qc2 {[%emt 0:02:08]} g5 {[%emt 0:01:33]} 14. Nfd3 {[%emt 0:05:20]} Bh5 {[%emt 0:03:14]} 15. c5 {[%emt 0:02:33]} Bc7 {[%emt 0:00:28]} 16. Na4 {[%emt 0:09:15]} Bg6 {[%emt 0:06:10]} 17. Bb2 {[%emt 0:02:39]} Be5 {[%emt 0:01:21] Pin} 18. Bd4 $1 {[%emt 0:01:46]} Bxd4 {[%emt 0:04:08]} 19. exd4 {[%emt 0:00:02]} Kg7 {[%emt 0:00:46]} 20. Rae1 {[%emt 0:01:53]} Qc7 {[%emt 0:01:40]} 21. Bh3 {[%emt 0:01:11]} Rae8 {[%emt 0:00:27]} 22. Bf5 {[%emt 0:00:47]} Ne4 {[%emt 0:02:01]} 23. Bxd7 {[%emt 0:04:19]} Qxd7 {[%emt 0:00:16]} 24. Ne5 {[%emt 0:50:12]} Rxe5 {[%emt 0:10:57]} 25. dxe5 {[%emt 0:04:23]} Nxg3 {[%emt 0:07:36]} 26. e6 {[%emt 0:00:34]} Bxc2 {[%emt 0:08:17]} 27. exd7 {[%emt 0:00:15]} Ne4 {[%emt 0:00:19]} 28. Re3 {[%emt 0:02:56]} f5 $2 {[%emt 0:04:25] [#]} (28... Rd8 {was necessary.} 29. d3 Bxd3 30. Rxd3 Rxd7) 29. Rxf5 $1 {[%emt 0:01:09]} Rd8 {[%emt 0:01:11]} 30. d3 {[%emt 0:00:34]} Nf6 {[%emt 0:00:24]} (30... Bxd3 $142 31. Rxd3 Rxd7) 31. Rxg5+ {[%emt 0:00:53]} Kf7 {[%emt 0:00:14]} 32. Rf5 {[%emt 0:01:37]} Bd1 {[%emt 0:00:36]} 33. h3 {[%emt 0:01:28]} 1-0